bitfinex/quotes_ETHUSD_20250604
["timestamp","ask_amount","ask_price","bid_price","bid_amount"]
[1749037360498,0.8074,2628.5,2628.0,2.79752584]
[1749037360698,0.8074,2628.5,2628.0,3.60559525]
[1749037361541,0.8074,2628.5,2628.0,10.38145844]
[1749037361724,0.8074,2628.5,2628.0,0.38145844]
[1749037361918,0.8074,2628.5,2628.0,10.0]
[1749037363117,2.79752584,2628.9,2628.0,10.0]
[1749037363319,0.8329,2628.7,2628.0,10.0]
[1749037363520,0.55,2628.4,2628.0,10.0]
[1749037363723,0.7852,2628.1,2627.9,0.89886503]
[1749037363929,0.7852,2628.1,2627.9,0.38886503]
[1749037364237,0.7852,2628.1,2627.5,9.66]
[1749037364441,0.7852,2628.1,2627.5,1.24575258]
[1749037364645,0.7852,2628.1,2627.5,4.216677]
[1749037364942,0.7852,2628.1,2627.6,10.0]
[1749037365141,0.7852,2628.1,2627.7,10.0]
[1749037365344,0.7852,2628.1,2627.4,2.79752584]
[1749037365549,0.55,2628.0,2627.7,0.37348637]
[1749037365703,0.8057,2627.9,2627.7,0.37348637]
[1749037365899,0.55,2627.8,2627.7,0.37348637]
[1749037366209,0.55,2627.8,2627.2,6.426013]
[1749037366411,0.55,2627.8,2627.3,0.92435388]
[1749037366651,7.951,2628.5,2627.3,0.92435388]
[1749037366652,0.8181,2627.7,2627.3,0.92435388]
[1749037366849,0.8181,2627.7,2627.3,10.92435388]
[1749037371149,0.8181,2627.7,2627.4,8.0]
[1749037371322,0.8181,2627.7,2627.3,0.92435388]
[1749037371530,0.8181,2627.7,2627.4,8.46066575]
[1749037371716,0.8181,2627.7,2627.4,0.46066575]
[1749037373740,0.8181,2627.7,2627.2,3.68230363]
[1749037375237,0.8181,2627.7,2627.4,2.79752584]
[1749037375417,0.8181,2627.7,2627.5,0.27975258]
[1749037376956,0.8181,2627.7,2627.2,0.88477779]
[1749037376957,0.8181,2627.7,2627.3,8.0]
[1749037377543,0.55,2627.8,2627.4,7.36145484]
[1749037377746,0.55,2627.8,2627.4,2.79752584]
[1749037379962,0.8308,2627.9,2627.6,2.79752584]
[1749037380461,0.8308,2627.9,2627.4,2.79752584]
[1749037380658,0.8308,2627.9,2627.5,0.27975258]
[1749037381661,0.55,2627.8,2627.2,3.68230363]
[1749037382019,0.55,2627.8,2627.3,8.0]
[1749037386323,0.7979,2627.2,2627.1,0.39232748]
[1749037386523,1.3724,2627.2,2627.1,0.02]
[1749037386965,1.78939258,2627.2,2627.1,0.02]
[1749037394447,1.3724,2627.2,2627.1,0.02]
[1749037401671,1.3724,2627.2,2627.1,0.02]
[1749037407958,0.55,2627.1,2626.4,1.44033995]
[1749037408221,0.55,2627.1,2626.4,1.82708069]
[1749037408795,0.55,2627.2,2626.4,1.82708069]
[1749037411139,0.55,2627.2,2626.6,2.79752584]
[1749037411321,0.55,2627.2,2626.6,3.1159525]
[1749037414622,4.67,2627.3,2626.8,10.0]
[1749037414824,4.67,2627.3,2626.8,12.79752584]
[1749037414997,4.67,2627.3,2626.8,2.79752584]
[1749037416126,4.67,2627.3,2627.0,2.79752584]
[1749037416331,0.7552,2627.6,2627.1,0.27975258]
[1749037418241,0.7552,2627.6,2627.0,2.79752584]
[1749037418809,0.7552,2627.6,2627.1,3.001803]
[1749037419741,0.8137,2627.8,2627.4,2.79752584]
[1749037420048,0.8137,2628.0,2627.4,2.79752584]
[1749037421111,0.7612,2628.4,2627.7,12.901803]
[1749037421312,1.00322,2628.4,2627.7,3.735803]
[1749037421506,0.55,2628.3,2627.7,3.735803]
[1749037421838,0.55,2628.3,2627.6,2.79752584]
[1749037422038,0.55,2628.3,2627.8,10.0]
[1749037422238,0.55,2628.3,2627.8,0.3859441]
[1749037422406,0.55,2628.3,2627.6,2.79752584]
[1749037422609,0.55,2628.3,2627.7,3.373277]
[1749037422806,0.55,2628.3,2627.6,2.79752584]
[1749037423326,0.55,2628.3,2627.4,2.79752584]
[1749037425347,1.3597,2628.3,2627.4,2.79752584]
[1749037425641,1.3597,2628.3,2627.4,4.92297842]
[1749037427717,1.3597,2628.3,2627.5,2.4151]
[1749037431770,1.3597,2628.3,2627.4,2.79752584]
[1749037432075,1.3597,2628.3,2627.5,3.001803]
[1749037432865,1.3597,2628.3,2627.9,10.0]
[1749037432866,0.8097,2628.3,2627.9,10.0]
[1749037433165,0.8097,2628.3,2628.0,1.27975258]
[1749037435467,0.8097,2628.3,2628.1,10.0]
[1749037435652,1.3519,2628.6,2628.1,10.0]
[1749037436373,0.8019,2628.6,2628.1,10.0]
[1749037436552,0.8019,2628.6,2628.3,19.812129]
[1749037436876,0.8019,2628.6,2628.4,1.32216536]
[1749037437155,0.8019,2628.6,2628.1,4.564036]
[1749037437354,0.8019,2628.6,2628.1,3.72706]
[1749037437927,3.34752584,2628.3,2627.8,0.88158348]
[1749037438149,0.7998,2628.2,2627.8,0.88158348]
[1749037444139,0.7998,2628.2,2627.8,8.88158348]
[1749037444461,0.8165,2628.5,2628.0,10.0]
[1749037444973,0.8165,2628.5,2628.0,3.353885]
[1749037445164,0.8165,2628.5,2628.1,5.757429]
[1749037445344,0.8165,2628.5,2628.1,5.262835]
[1749037445764,0.8165,2628.5,2628.1,4.980406]
[1749037446061,0.8165,2628.5,2628.1,1.03218625]
[1749037446260,0.8165,2628.5,2628.1,10.0]
[1749037446571,0.8165,2628.5,2628.0,7.45755884]
[1749037446750,0.7766,2628.8,2628.1,12.889108]
[1749037447084,0.7766,2628.8,2628.2,10.0]
[1749037447391,0.7766,2628.8,2628.3,2.2889108]
[1749037447693,0.7766,2628.8,2628.1,21.809312]
[1749037447869,0.7766,2628.8,2628.1,11.136429]
[1749037448184,0.7766,2628.8,2628.2,10.0]
[1749037448373,0.7766,2628.8,2628.2,2.384366]
[1749037448749,0.55,2628.7,2628.2,10.0]
[1749037449091,0.7766,2628.4,2627.8,0.88158348]
[1749037449293,0.7766,2628.4,2627.9,8.0]
[1749037449495,0.7766,2628.4,2627.9,8.88815835]
[1749037454578,0.7766,2628.4,2627.9,8.0]
[1749037455309,0.7766,2628.4,2627.8,0.88158348]
[1749037455475,0.7788,2628.2,2627.8,0.88158348]
[1749037455668,0.7788,2628.2,2627.9,2.27878]
[1749037456103,0.7788,2628.2,2627.9,10.0]
[1749037456405,0.7788,2628.2,2627.8,10.88158348]
[1749037456601,0.7788,2628.2,2627.9,2.374291]
[1749037462416,0.7788,2628.2,2627.8,10.88158348]
[1749037462989,0.7788,2628.2,2627.8,0.88158348]
[1749037463219,0.7788,2628.2,2627.8,10.88158348]
[1749037463418,0.7788,2628.2,2627.8,0.88158348]
[1749037463588,0.7788,2628.2,2627.9,10.0]
[1749037463783,0.7788,2628.2,2627.9,8.0]
[1749037466107,3.58112584,2628.1,2627.8,0.37158348]
[1749037466311,0.7698,2627.9,2627.1,2.86013978]
[1749037466510,0.7698,2627.9,2627.3,10.0]
[1749037466836,0.7698,2627.9,2627.6,10.0]
[1749037467013,0.7698,2627.9,2627.6,8.585191]
[1749037467214,0.7698,2627.9,2627.3,14.64777284]
[1749037467518,0.7698,2627.9,2627.5,8.528647]
[1749037468235,0.7698,2627.9,2627.6,10.0]
[1749037468940,0.7591,2628.1,2627.5,9.61063484]
[1749037469145,0.7591,2628.1,2627.7,10.0]
[1749037469445,0.7591,2628.1,2627.7,0.65556732]
[1749037471148,0.7591,2628.1,2627.6,10.0]
[1749037471350,0.7591,2628.1,2627.5,13.359553]
[1749037471650,0.7591,2628.1,2627.6,3.763685]
[1749037471859,0.7591,2628.1,2627.6,3.363685]
[1749037472018,0.7719,2627.9,2627.2,8.51]
[1749037472222,0.7719,2627.9,2627.4,18.0]
[1749037472421,0.7719,2627.9,2627.3,1.13075258]
[1749037472627,0.7719,2627.9,2627.4,8.0]
[1749037472822,0.7719,2627.9,2627.2,0.51]
[1749037473342,0.7719,2627.9,2627.2,8.51]
[1749037473516,0.7719,2627.9,2627.3,10.784559]
[1749037473709,0.7719,2627.9,2627.4,8.0]
[1749037473911,0.7719,2627.9,2627.4,1.651]
[1749037474546,0.7719,2627.9,2627.4,9.651]
[1749037474744,0.7719,2627.9,2627.4,1.651]
[1749037474930,0.7719,2627.9,2627.2,0.51]
[1749037475252,0.7719,2627.9,2627.4,8.0]
[1749037475564,0.7719,2627.9,2627.2,0.51]
[1749037475944,0.7719,2627.9,2627.2,8.51]
[1749037476330,0.7719,2627.9,2627.2,0.51]
[1749037476520,0.7719,2627.9,2627.4,8.0]
[1749037476727,0.7719,2627.9,2627.3,10.0]
[1749037477168,0.7719,2627.9,2627.2,0.7263]
[1749037478161,0.7719,2627.9,2627.4,8.0]
[1749037478371,0.7719,2627.9,2627.2,0.7263]
[1749037478660,0.7719,2627.9,2627.4,8.0]
[1749037479830,0.7719,2627.9,2627.3,0.87263]
[1749037480260,0.7719,2627.9,2627.4,8.0]
[1749037480867,0.7719,2627.9,2627.3,0.87263]
[1749037481726,0.7719,2627.9,2627.4,8.0]
[1749037482229,0.7719,2627.9,2627.3,0.87263]
[1749037483174,0.7719,2627.9,2627.3,8.87263]
[1749037483387,0.7719,2627.9,2627.4,1.23964558]
[1749037487792,0.7719,2627.9,2627.4,8.0]
[1749037488297,0.7719,2627.9,2627.2,0.7263]
[1749037488659,0.7719,2627.9,2627.4,8.0]
[1749037488858,0.7719,2627.9,2627.2,0.7263]
[1749037489374,0.7719,2627.9,2627.4,8.0]
[1749037489901,0.7719,2627.9,2627.2,0.7263]
[1749037490080,0.7719,2627.9,2627.4,8.0]
[1749037490394,0.55,2627.6,2627.2,0.51]
[1749037490601,0.8012,2627.5,2627.2,0.51]
[1749037491112,0.8012,2627.5,2626.8,7.84443395]
[1749037491285,0.8012,2627.5,2626.9,13.499693]
[1749037491476,0.8012,2627.5,2626.9,11.499693]
[1749037491796,0.8012,2627.5,2626.8,1.653]
[1749037491961,0.786,2627.3,2626.5,10.0]
[1749037492362,0.786,2627.3,2626.6,10.0]
[1749037492762,0.786,2627.3,2626.5,10.0]
[1749037493386,0.786,2627.3,2626.6,10.0]
[1749037493705,0.786,2627.3,2626.4,10.75674074]
[1749037493706,0.786,2627.3,2626.7,1.0]
[1749037494978,0.786,2627.3,2626.6,8.0]
[1749037495184,0.786,2627.3,2626.5,8.0]
[1749037497113,0.786,2627.3,2626.9,10.0]
[1749037497605,0.786,2627.3,2626.6,12.79752584]
[1749037497809,0.786,2627.3,2626.6,2.79752584]
[1749037497977,0.786,2627.3,2626.7,8.27975258]
[1749037498179,0.76,2627.1,2626.7,0.27975258]
[1749037500916,0.76,2627.1,2626.8,7.181227]
[1749037501134,0.76,2627.1,2626.7,0.27975258]
[1749037501309,0.55,2627.5,2626.8,5.420398]
[1749037501616,0.55,2627.5,2626.7,3.07727842]
[1749037501617,0.7737,2627.4,2626.7,0.27975258]
[1749037501785,0.55,2627.3,2626.5,8.0]
[1749037502120,0.7737,2627.2,2626.5,8.0]
[1749037502793,0.7737,2627.0,2626.4,0.89674074]
[1749037503929,0.7911,2626.8,2626.4,0.89674074]
[1749037504094,0.55,2626.7,2626.4,0.51]
[1749037504287,0.55,2626.7,2626.1,0.02]
[1749037504288,0.8059,2626.6,2626.1,0.02]
[1749037504685,0.55,2626.5,2626.1,0.02]
[1749037504916,0.8059,2626.4,2626.1,0.02]
[1749037508538,0.8092,2626.6,2626.1,2.81752584]
[1749037508735,0.8092,2626.6,2626.1,0.02]
[1749037509274,0.8092,2626.6,2625.9,8.0]
[1749037509553,0.8092,2626.6,2626.1,10.0]
[1749037509859,0.8092,2626.6,2626.1,11.8]
[1749037510028,0.8092,2626.6,2626.1,1.8]
[1749037510229,0.8092,2626.6,2626.0,5.981361]
[1749037510450,0.8092,2626.6,2626.1,0.54368162]
[1749037510652,0.8092,2626.6,2626.1,10.0]
[1749037510973,0.8092,2626.6,2625.9,8.0]
[1749037511414,0.8092,2626.6,2625.8,8.0]
[1749037511614,0.8092,2626.6,2625.8,2.79752584]
[1749037512570,0.8092,2626.6,2625.9,8.0]
[1749037513342,0.8092,2626.6,2626.1,8.278118]
[1749037513764,0.8092,2626.6,2626.0,3.17862705]
[1749037513765,0.8092,2626.6,2626.2,10.0]
[1749037513953,0.8092,2626.6,2626.0,0.38110121]
[1749037514163,0.8092,2626.6,2625.9,8.0]
[1749037514874,0.55,2626.6,2625.9,8.0]
[1749037515035,0.55,2626.4,2625.9,8.0]
[1749037515360,0.7962,2626.3,2625.9,8.851]
[1749037516250,0.7962,2626.3,2625.9,9.22687724]
[1749037517169,0.8126,2626.5,2625.9,12.02440308]
[1749037517366,0.8126,2626.5,2626.0,16.769953]
[1749037517555,0.8126,2626.5,2626.2,11.881797]
[1749037517757,0.8126,2626.5,2626.2,5.456814]
[1749037517929,0.8126,2626.5,2626.2,3.899854]
[1749037518432,0.8126,2626.5,2626.2,2.707854]
[1749037519285,0.7681,2626.7,2626.4,7.680238]
[1749037519429,1.649,2627.6,2626.6,12.79752584]
[1749037519630,1.649,2627.6,2626.6,2.79752584]
[1749037520261,0.55,2627.5,2626.6,2.79752584]
[1749037520481,0.55,2627.5,2626.6,10.0]
[1749037520682,0.55,2627.3,2626.5,0.851]
[1749037520866,0.55,2627.3,2626.5,26.74966]
[1749037521078,0.55,2627.3,2626.5,11.299417]
[1749037521582,0.55,2627.3,2626.6,10.79752584]
[1749037521786,12.44,2628.3,2627.0,2.79752584]
[1749037521787,1.669,2627.9,2627.0,2.79752584]
[1749037521949,1.669,2627.9,2626.7,0.7681]
[1749037521950,1.669,2627.9,2627.2,2.79752584]
[1749037522150,1.669,2627.9,2627.1,12.655177]
[1749037522379,0.8239,2627.8,2626.9,13.703491]
[1749037522581,0.24929,2627.7,2626.9,13.703491]
[1749037522885,0.8239,2627.6,2626.9,11.832977]
[1749037523673,0.8239,2627.6,2626.8,11.949323]
[1749037525396,0.8239,2627.6,2626.9,14.165585]
[1749037526246,0.8239,2627.6,2626.9,12.395779]
[1749037526550,0.8239,2627.6,2627.0,11.825373]
[1749037527379,0.8239,2627.6,2626.8,4.48260857]
[1749037527543,3.34752584,2627.3,2626.6,0.51]
[1749037527746,3.34752584,2627.3,2625.9,3.94150308]
[1749037527747,1.3142,2627.0,2625.9,3.94150308]
[1749037527949,1.3142,2627.0,2626.4,8.0]
[1749037529147,0.812,2626.9,2626.0,9.51513072]
[1749037529356,0.812,2626.9,2626.3,8.0]
[1749037529667,0.812,2626.9,2626.1,12.523096]
[1749037529865,0.812,2626.9,2626.4,2.377315]
[1749037530090,0.7633,2626.8,2626.0,1.51513072]
[1749037530289,0.7633,2626.8,2626.1,8.0]
[1749037530773,0.7633,2626.8,2626.0,8.0]
[1749037532481,0.7633,2626.8,2626.0,8.51]
[1749037532879,0.55,2626.7,2626.0,8.51]
[1749037533091,0.8091,2626.6,2626.0,0.51]
[1749037533698,0.8091,2626.6,2626.0,8.51]
[1749037534086,0.8091,2626.6,2626.0,0.51]
[1749037534535,0.8091,2626.6,2626.0,8.51]
[1749037534709,0.8091,2626.6,2626.0,10.39816934]
[1749037535182,0.8091,2626.6,2626.0,8.51]
[1749037538891,2.79752584,2626.6,2626.0,8.51]
[1749037539093,0.7672,2626.4,2626.0,8.51]
[1749037539345,0.7672,2626.4,2626.0,0.51]
[1749037539567,0.7672,2626.4,2625.9,0.37169338]
[1749037539834,1.17867258,2626.4,2625.8,7.314594]
[1749037540001,0.7672,2626.4,2625.9,10.0]
[1749037540334,0.7672,2626.3,2625.1,3.48652829]
[1749037540629,0.7672,2626.3,2625.2,18.245562]
[1749037540829,0.7672,2626.3,2625.4,27.939374]
[1749037541024,0.7672,2626.3,2625.4,17.726374]
[1749037541732,0.7672,2626.3,2625.6,19.540565]
[1749037541933,0.7672,2626.3,2625.6,13.903645]
[1749037542156,0.7672,2626.3,2625.6,10.298839]
[1749037542342,0.7672,2626.3,2625.7,0.74713557]
[1749037542544,0.7672,2626.3,2626.0,8.0]
[1749037542712,0.8378,2626.5,2626.2,8.0]
[1749037542909,0.8378,2626.8,2626.2,8.914236]
[1749037543145,0.8378,2626.8,2626.3,7.29097]
[1749037543458,0.8378,2626.8,2626.4,0.729097]
[1749037544132,1.649,2627.3,2626.4,0.729097]
[1749037544350,0.8868,2627.2,2626.6,2.8171]
[1749037544527,0.8868,2627.2,2626.6,2.381998]
[1749037544729,0.8868,2627.2,2626.7,10.0]
[1749037544920,0.8868,2627.2,2626.6,2.385802]
[1749037545116,0.8868,2627.2,2626.7,10.0]
[1749037547052,0.8868,2627.2,2626.6,2.381898]
[1749037547351,0.8868,2627.2,2626.7,10.0]
[1749037547860,0.8868,2627.2,2626.4,0.729097]
[1749037548148,0.8868,2627.2,2626.5,8.0]
[1749037548451,0.8868,2627.2,2626.7,10.0]
[1749037549655,0.8347,2627.0,2626.7,10.0]
[1749037549860,0.8347,2627.0,2626.4,0.729097]
[1749037550062,0.8347,2627.0,2626.2,10.159]
[1749037550568,0.8347,2626.6,2626.2,0.51]
[1749037550740,0.8347,2626.6,2625.7,17.043781]
[1749037550940,0.8347,2626.6,2625.7,17.792686]
[1749037551143,0.8347,2626.6,2625.9,8.0]
[1749037551361,0.8347,2626.6,2625.7,17.796491]
[1749037551664,0.8347,2626.6,2625.9,10.0]
[1749037551865,0.8347,2626.6,2625.7,19.254283]
[1749037552065,0.8347,2626.6,2625.8,8.0]
[1749037554453,0.8347,2626.6,2625.7,8.51]
[1749037554637,0.8347,2626.6,2625.9,10.0]
[1749037554836,0.8347,2626.6,2625.9,8.0]
[1749037556931,0.8347,2626.6,2626.1,14.368881]
[1749037557133,0.8347,2626.6,2625.9,8.0]
[1749037557134,0.8347,2626.6,2626.0,12.543055]
[1749037557339,0.8347,2626.6,2626.1,9.49214]
[1749037557637,0.8347,2626.6,2626.2,1.75241444]
[1749037557840,0.8347,2626.6,2625.9,8.8772]
[1749037558240,0.8347,2626.6,2625.7,0.51]
[1749037558537,0.8347,2626.6,2625.8,9.34905]
[1749037558742,0.8347,2626.6,2626.0,10.0]
[1749037558937,0.8347,2626.6,2625.9,5.088613]
[1749037559143,0.8347,2626.6,2626.0,5.088613]
[1749037559353,0.8347,2626.6,2626.0,2.834828]
[1749037560240,0.8347,2626.6,2626.1,10.0]
[1749037560544,0.8347,2626.6,2626.3,10.0]
[1749037560735,0.874,2627.0,2626.2,5.554183]
[1749037560938,0.874,2627.0,2626.3,5.554183]
[1749037561553,0.874,2627.0,2626.3,4.401834]
[1749037561987,0.874,2627.0,2626.4,26.79756]
[1749037562185,0.874,2627.0,2626.4,16.79756]
[1749037562900,0.874,2627.0,2626.6,4.460932]
[1749037563192,0.874,2627.0,2626.7,0.81468578]
[1749037563347,0.874,2627.0,2626.6,2.38759]
[1749037564387,0.874,2627.0,2626.3,2.79752584]
[1749037564544,0.874,2627.0,2626.4,14.437613]
[1749037564767,0.874,2627.0,2626.6,10.0]
[1749037564963,0.874,2627.0,2626.6,1.6180826]
[1749037567383,0.874,2627.0,2626.7,3.285]
[1749037567591,0.874,2627.0,2626.7,2.986804]
[1749037570619,0.8836,2627.5,2626.8,0.1402]
[1749037570967,0.8836,2627.5,2627.1,2.79752584]
[1749037571127,0.8836,2627.5,2627.0,8.0]
[1749037571428,0.8836,2627.5,2627.0,0.37977329]
[1749037571571,0.8836,2627.5,2627.0,8.37977329]
[1749037571770,0.8836,2627.5,2626.8,8.61470866]
[1749037572105,0.8836,2627.5,2627.1,8.0]
[1749037572273,0.8836,2627.5,2626.7,10.0]
[1749037572274,0.8836,2627.5,2626.6,4.658276]
[1749037572472,0.8836,2627.5,2626.5,8.1402]
[1749037572473,0.8836,2627.5,2626.9,2.380001]
[1749037572707,0.8836,2627.5,2627.0,2.383805]
[1749037573118,0.8836,2627.5,2626.9,2.383805]
[1749037573427,0.8414,2627.4,2626.9,2.383805]
[1749037574270,0.8414,2627.4,2626.8,0.51]
[1749037574271,0.9082,2627.2,2626.8,0.51]
[1749037575599,0.9082,2627.2,2626.8,11.30752584]
[1749037575796,0.9082,2627.2,2626.8,0.51]
[1749037576010,0.9082,2627.2,2626.9,10.86502]
[1749037577247,0.9082,2627.2,2627.0,12.54631]
[1749037577729,0.858,2627.8,2627.0,12.54631]
[1749037578132,0.858,2627.8,2626.9,27.137283]
[1749037578626,0.858,2627.8,2626.9,25.970527]
[1749037578814,0.858,2627.8,2626.9,25.2073]
[1749037579331,0.858,2627.8,2626.9,21.1913]
[1749037579635,0.858,2627.8,2626.9,17.046433]
[1749037579925,0.858,2627.8,2626.9,12.529815]
[1749037580632,0.858,2627.8,2627.1,27.596504]
[1749037580923,0.858,2627.8,2627.1,13.514691]
[1749037581137,0.858,2627.8,2627.3,20.464039]
[1749037581347,0.858,2627.8,2627.3,10.464039]
[1749037581841,0.858,2627.8,2627.3,5.989112]
[1749037582046,0.858,2627.8,2627.3,2.387612]
[1749037582202,0.858,2627.8,2627.1,20.051288]
[1749037582402,0.858,2627.8,2627.3,12.383803]
[1749037582628,0.858,2627.8,2627.1,12.383903]
[1749037582827,0.858,2627.8,2627.1,2.383903]
[1749037583038,0.858,2627.8,2627.2,10.0]
[1749037583236,0.858,2627.8,2627.2,2.383803]
[1749037584949,0.858,2627.8,2627.2,4.4221833]
[1749037585129,0.858,2627.8,2627.3,9.597803]
[1749037587050,0.858,2627.8,2627.3,7.698803]
[1749037587277,0.858,2627.8,2627.4,10.0]
[1749037587457,0.858,2627.8,2627.3,2.387531]
[1749037587762,0.858,2627.8,2627.2,2.387531]
[1749037588257,1.22555258,2627.8,2627.2,2.387531]
[1749037588453,0.8437,2627.7,2627.2,2.387531]
[1749037588664,0.8437,2627.7,2627.1,4.18743047]
[1749037589042,0.8437,2627.7,2627.2,4.18743047]
[1749037589244,0.8437,2627.7,2626.9,9.645]
[1749037589438,0.8437,2627.7,2627.3,10.0]
[1749037589655,0.8437,2627.7,2627.2,11.446061]
[1749037589856,0.8437,2627.7,2627.2,10.63443]
[1749037590057,0.8437,2627.7,2627.2,10.088146]
[1749037590778,0.8437,2627.7,2627.3,10.0]
[1749037590977,0.8437,2627.7,2627.2,10.0]
[1749037591131,0.8437,2627.7,2627.3,3.469268]
[1749037591333,0.8437,2627.7,2627.2,10.0]
[1749037592839,0.8437,2627.7,2627.3,8.0]
[1749037593041,0.8437,2627.7,2627.4,19.613596]
[1749037593257,0.02,2627.9,2627.6,14.957786]
[1749037593971,0.02,2627.9,2627.6,14.225005]
[1749037594676,0.02,2627.9,2627.7,10.79752584]
[1749037595436,0.02,2627.9,2627.7,11.76794025]
[1749037597351,0.02,2627.9,2627.7,18.03394025]
[1749037597545,0.02,2627.9,2627.8,20.69781]
[1749037600852,0.02,2627.9,2627.8,12.119008]
[1749037601052,0.02,2627.9,2627.8,13.761208]
[1749037601884,0.02,2627.9,2627.8,12.026208]
[1749037602748,0.02,2627.9,2627.8,9.6422]
[1749037603077,0.02,2627.9,2627.8,10.0]
[1749037603276,0.02,2627.9,2627.6,0.78975258]
[1749037603466,0.888,2627.8,2627.7,12.664215]
[1749037605488,0.888,2627.8,2627.6,0.51]
[1749037605645,0.888,2627.8,2627.4,0.97198317]
[1749037605847,0.888,2627.8,2627.2,8.0]
[1749037606076,0.888,2627.8,2627.3,1.87065258]
[1749037606403,0.888,2627.8,2627.4,26.010889]
[1749037606570,0.888,2627.8,2627.4,8.380776]
[1749037606884,0.888,2627.8,2627.5,2.55239]
[1749037607090,0.888,2627.8,2627.4,8.95868525]
[1749037608282,0.888,2627.8,2627.6,10.0]
[1749037608489,0.888,2627.8,2627.4,8.95868525]
[1749037608692,0.888,2627.8,2627.4,8.0]
[1749037609757,0.888,2627.8,2627.4,8.96647403]
[1749037609957,0.888,2627.8,2627.4,8.0]
[1749037613560,0.888,2627.8,2627.2,0.51]
[1749037613759,0.888,2627.8,2627.2,9.44503843]
[1749037613957,0.55,2627.7,2627.2,1.44503843]
[1749037614171,0.9251,2627.6,2627.2,0.51]
[1749037614507,0.9251,2627.6,2626.5,4.64709626]
[1749037614508,0.9251,2627.5,2626.5,11.34130383]
[1749037614821,0.9251,2627.5,2626.9,8.0]
[1749037614959,0.9251,2627.5,2626.7,2.533746]
[1749037615157,0.8675,2627.3,2626.5,0.37547799]
[1749037615406,0.8675,2627.3,2626.4,8.0]
[1749037615706,0.8675,2627.3,2626.4,14.553759]
[1749037615873,0.8675,2627.3,2626.4,8.0]
[1749037616071,0.8675,2627.3,2626.3,4.44052584]
[1749037616272,0.8675,2627.3,2626.5,10.0]
[1749037616471,0.9484,2627.1,2626.5,0.37431935]
[1749037616675,0.9484,2627.1,2626.1,11.643]
[1749037616973,0.9484,2627.1,2626.3,8.0]
[1749037617170,0.9484,2627.1,2626.4,12.399098]
[1749037617393,0.9484,2627.1,2626.4,14.71876038]
[1749037617566,0.9484,2627.1,2626.7,2.79752584]
[1749037619121,0.9484,2627.1,2626.6,8.0]
[1749037619965,0.9484,2627.1,2626.8,10.0]
[1749037620293,0.9484,2627.1,2626.7,7.464412]
[1749037620510,0.9484,2627.1,2626.5,10.01840939]
[1749037620710,0.9484,2627.1,2626.5,10.60725466]
[1749037621003,0.55,2627.0,2626.5,2.01840939]
[1749037621169,0.9275,2626.9,2626.5,2.01840939]
[1749037621719,0.9275,2626.9,2626.7,10.0]
[1749037621859,0.9275,2626.9,2626.6,18.340212]
[1749037622062,0.9275,2626.9,2626.6,8.340212]
[1749037622296,0.9275,2626.9,2626.6,7.564912]
[1749037622501,0.9275,2626.9,2626.7,10.0]
[1749037622658,0.9275,2626.9,2626.6,15.247912]
[1749037622858,0.9275,2626.9,2626.7,10.0]
[1749037623076,0.9275,2626.9,2626.6,16.135912]
[1749037623296,0.9275,2626.9,2626.7,10.0]
[1749037623516,0.9275,2626.9,2626.5,10.37440939]
[1749037623669,0.9275,2626.9,2626.6,10.0]
[1749037624179,0.55,2626.8,2626.3,0.88268473]
[1749037624380,0.9488,2626.7,2626.3,0.88268473]
[1749037624762,0.9488,2626.7,2626.3,0.51]
[1749037624963,0.8981,2626.5,2625.6,10.0]
[1749037625166,0.8981,2626.5,2625.8,5.78404]
[1749037625359,0.8981,2626.5,2625.9,10.0]
[1749037625598,0.8981,2626.5,2625.7,1.644]
[1749037625599,0.8981,2626.5,2625.8,18.0]
[1749037625903,0.8981,2626.5,2625.6,9.644]
[1749037626119,0.8981,2626.5,2625.8,18.0]
[1749037626402,0.8981,2626.5,2626.0,10.0]
[1749037626603,0.8981,2626.5,2625.7,9.24415258]
[1749037626911,0.8981,2626.5,2625.6,7.908]
[1749037626912,0.8981,2626.5,2625.6,7.616842]
[1749037627202,3.71002584,2626.0,2624.8,1.9063]
[1749037627418,3.71002584,2626.0,2624.9,0.51]
[1749037627419,0.9125,2625.8,2624.9,0.51]
[1749037628220,0.8915,2625.6,2624.9,0.51]
[1749037628524,0.8915,2625.5,2624.9,0.51]
[1749037628820,0.8915,2625.5,2624.6,9.644]
[1749037629126,0.8915,2625.5,2624.6,1.644]
[1749037629311,0.8915,2625.5,2624.6,9.644]
[1749037630198,5.30493917,2626.0,2624.6,9.644]
[1749037630399,0.9158,2625.3,2624.6,9.644]
[1749037631402,0.9158,2625.3,2624.4,9.644]
[1749037632211,0.9158,2625.3,2624.6,5.30493917]
[1749037632411,1.24489392,2625.9,2625.2,10.0]
[1749037632412,0.9761,2625.8,2625.2,10.0]
[1749037632618,0.9761,2625.8,2625.0,10.0]
[1749037632802,0.9761,2625.8,2625.2,10.0]
[1749037633220,0.9332,2625.6,2625.2,10.0]
[1749037637230,0.9332,2625.6,2625.1,10.02]